[Event "*** SCC Grand Prix: Titled Tuesday Blitz"]
[Site "Chess.com"]
[Date "2020.10.06"]
[Round "7"]
[White "chessmadara"]
[Black "SergeyShtyka"]
[Result "1-0"]
[WhiteElo "2124"]
[BlackElo "2245"]
[TimeControl "180+1"]
[EndTime "11:22:10 PDT"]
[Termination "chessmadara won by checkmate"]

1. c4 {[%clk 0:03:00.9]} 1... c5 {[%clk 0:02:59.4]} 2. g3 {[%clk 0:02:58.1]}
2... Nf6 {[%clk 0:02:59.1]} 3. Bg2 {[%clk 0:02:57.7]} 3... g6 {[%clk 0:02:59.5]}
4. Nf3 {[%clk 0:02:57.3]} 4... Bg7 {[%clk 0:02:59.8]} 5. O-O {[%clk 0:02:57.2]}
5... O-O {[%clk 0:03:00]} 6. Nc3 {[%clk 0:02:55.7]} 6... Nc6 {[%clk 0:03:00.1]}
7. d4 {[%clk 0:02:55.4]} 7... cxd4 {[%clk 0:03:00.2]} 8. Nxd4 {[%clk 0:02:56.3]}
8... Nxd4 {[%clk 0:03:00]} 9. Qxd4 {[%clk 0:02:55.9]} 9... d6 {[%clk 0:03:00.5]}
10. e4 {[%clk 0:02:54.1]} 10... Ng4 {[%clk 0:02:58.7]} 11. Qd3 {[%clk 0:02:47]}
11... Ne5 {[%clk 0:02:58.7]} 12. Qe2 {[%clk 0:02:46.5]} 12... Be6 {[%clk
0:02:58.6]} 13. Nd5 {[%clk 0:02:43.1]} 13... Bxd5 {[%clk 0:02:55.2]} 14. cxd5
{[%clk 0:02:42.9]} 14... Rc8 {[%clk 0:02:41.6]} 15. Be3 {[%clk 0:02:25.6]} 15...
Nc4 {[%clk 0:02:39.2]} 16. Rab1 {[%clk 0:02:08.2]} 16... Qa5 {[%clk 0:02:27]}
17. Bg5 {[%clk 0:01:58.2]} 17... f6 {[%clk 0:01:35.9]} 18. b3 {[%clk 0:01:55.4]}
18... Na3 {[%clk 0:01:08.2]} 19. Bd2 {[%clk 0:01:54.3]} 19... Rc2 {[%clk
0:01:07]} 20. Bxa5 {[%clk 0:01:44.3]} 20... Rxe2 {[%clk 0:01:06.4]} 21. Rbc1
{[%clk 0:01:41.5]} 21... b6 {[%clk 0:00:57.4]} 22. Bb4 {[%clk 0:01:40.2]} 22...
Nc2 {[%clk 0:00:40.5]} 23. Bf3 {[%clk 0:01:30.4]} 23... Nd4 {[%clk 0:00:26.3]}
24. Bxe2 {[%clk 0:01:16.6]} 24... Nxe2+ {[%clk 0:00:27.2]} 25. Kg2 {[%clk
0:01:16.9]} 25... Nxc1 {[%clk 0:00:27.4]} 26. Rxc1 {[%clk 0:01:17.8]} 26... a5
{[%clk 0:00:27.9]} 27. Bd2 {[%clk 0:01:15.4]} 27... Rb8 {[%clk 0:00:27.8]} 28.
Rc7 {[%clk 0:01:14.7]} 28... Kf7 {[%clk 0:00:28]} 29. Be3 {[%clk 0:01:14.3]}
29... b5 {[%clk 0:00:27.8]} 30. Ra7 {[%clk 0:01:13.2]} 30... a4 {[%clk
0:00:25.3]} 31. bxa4 {[%clk 0:01:13.1]} 31... bxa4 {[%clk 0:00:25.9]} 32. Rxa4
{[%clk 0:01:13.6]} 32... f5 {[%clk 0:00:26.8]} 33. exf5 {[%clk 0:01:09.6]} 33...
gxf5 {[%clk 0:00:27.7]} 34. Rf4 {[%clk 0:00:31.3]} 34... Kg6 {[%clk 0:00:27.3]}
35. h4 {[%clk 0:00:31.2]} 35... Be5 {[%clk 0:00:25.6]} 36. h5+ {[%clk
0:00:29.5]} 36... Kf6 {[%clk 0:00:24.3]} 37. Rc4 {[%clk 0:00:28.6]} 37... Ra8
{[%clk 0:00:23.1]} 38. a4 {[%clk 0:00:27.2]} 38... Ra5 {[%clk 0:00:23.3]} 39.
Bb6 {[%clk 0:00:25.7]} 39... Rxd5 {[%clk 0:00:23]} 40. a5 {[%clk 0:00:26]} 40...
Rd3 {[%clk 0:00:23]} 41. Ra4 {[%clk 0:00:25.5]} 41... d5 {[%clk 0:00:20.4]} 42.
a6 {[%clk 0:00:25]} 42... Bb8 {[%clk 0:00:21]} 43. a7 {[%clk 0:00:24.5]} 43...
Bxa7 {[%clk 0:00:21.5]} 44. Bxa7 {[%clk 0:00:21.5]} 44... Kg5 {[%clk 0:00:21.4]}
45. Rh4 {[%clk 0:00:10.4]} 45... e5 {[%clk 0:00:21]} 46. Ra4 {[%clk 0:00:05.8]}
46... Kxh5 {[%clk 0:00:20.4]} 47. Ra6 {[%clk 0:00:04.2]} 47... Kg5 {[%clk
0:00:19.2]} 48. Be3+ {[%clk 0:00:03.8]} 48... f4 {[%clk 0:00:19.5]} 49. gxf4+
{[%clk 0:00:04]} 49... exf4 {[%clk 0:00:20.4]} 50. Bc5 {[%clk 0:00:04]} 50...
Kg4 {[%clk 0:00:20.9]} 51. Be7 {[%clk 0:00:03.9]} 51... f3+ {[%clk 0:00:21.4]}
52. Kh2 {[%clk 0:00:03.4]} 52... Rd1 {[%clk 0:00:22.3]} 53. Ra4+ {[%clk
0:00:01.9]} 53... Kf5 {[%clk 0:00:21.8]} 54. Bc5 {[%clk 0:00:02.2]} 54... Rd3
{[%clk 0:00:19.2]} 55. Be3 {[%clk 0:00:02.2]} 55... h5 {[%clk 0:00:18.4]} 56.
Rf4+ {[%clk 0:00:02.6]} 56... Ke5 {[%clk 0:00:18.2]} 57. Rxf3 {[%clk 0:00:03.5]}
57... Ke4 {[%clk 0:00:11.3]} 58. Rh3 {[%clk 0:00:02.8]} 58... d4 {[%clk
0:00:11.1]} 59. Rh4+ {[%clk 0:00:02.3]} 59... Kf3 {[%clk 0:00:09.3]} 60. Rxd4
{[%clk 0:00:03.2]} 60... Rb3 {[%clk 0:00:08.7]} 61. Rf4+ {[%clk 0:00:02.8]}
61... Ke2 {[%clk 0:00:08.1]} 62. Kg3 {[%clk 0:00:03.3]} 62... Rb5 {[%clk
0:00:08.4]} 63. Rh4 {[%clk 0:00:03.3]} 63... Kd3 {[%clk 0:00:07.7]} 64. Bf4
{[%clk 0:00:02.5]} 64... Ke4 {[%clk 0:00:07.1]} 65. f3+ {[%clk 0:00:02.8]} 65...
Kd3 {[%clk 0:00:07.4]} 66. Bh6 {[%clk 0:00:01.7]} 66... Ke2 {[%clk 0:00:08]} 67.
Re4+ {[%clk 0:00:01.4]} 67... Kd3 {[%clk 0:00:07.7]} 68. Bf4 {[%clk 0:00:02]}
68... Rb1 {[%clk 0:00:07.8]} 69. Re5 {[%clk 0:00:02.6]} 69... Rg1+ {[%clk
0:00:08]} 70. Kh4 {[%clk 0:00:02.4]} 70... Rh1+ {[%clk 0:00:08.5]} 71. Kg5
{[%clk 0:00:02.7]} 71... h4 {[%clk 0:00:09.4]} 72. Kg4 {[%clk 0:00:02.6]} 72...
h3 {[%clk 0:00:09.5]} 73. Bg3 {[%clk 0:00:02.3]} 73... h2 {[%clk 0:00:09.2]} 74.
Rh5 {[%clk 0:00:02.4]} 74... Rb1 {[%clk 0:00:06.7]} 75. Rxh2 {[%clk 0:00:03.3]}
75... Rb7 {[%clk 0:00:06.5]} 76. Rh5 {[%clk 0:00:03.8]} 76... Rg7+ {[%clk
0:00:06.7]} 77. Rg5 {[%clk 0:00:03.6]} 77... Rf7 {[%clk 0:00:07.6]} 78. f4
{[%clk 0:00:03.7]} 78... Ke4 {[%clk 0:00:07.9]} 79. Re5+ {[%clk 0:00:03.5]}
79... Kd4 {[%clk 0:00:08.4]} 80. Bh4 {[%clk 0:00:03.7]} 80... Rg7+ {[%clk
0:00:08.7]} 81. Bg5 {[%clk 0:00:04]} 81... Rg8 {[%clk 0:00:09.6]} 82. Kf5 {[%clk
0:00:04.3]} 82... Rf8+ {[%clk 0:00:09.7]} 83. Kg6 {[%clk 0:00:04.5]} 83... Rg8+
{[%clk 0:00:09.9]} 84. Kf7 {[%clk 0:00:04.1]} 84... Rc8 {[%clk 0:00:09.4]} 85.
Re7 {[%clk 0:00:03]} 85... Kc4 {[%clk 0:00:09]} 86. f5 {[%clk 0:00:03.3]} 86...
Kb3 {[%clk 0:00:09.4]} 87. f6 {[%clk 0:00:03.5]} 87... Rc5 {[%clk 0:00:10.3]}
88. Kg6 {[%clk 0:00:02.7]} 88... Rc6 {[%clk 0:00:10.1]} 89. Rf7 {[%clk
0:00:01.8]} 89... Ka2 {[%clk 0:00:10.1]} 90. Re7 {[%clk 0:00:02.4]} 90... Rb6
{[%clk 0:00:09.8]} 91. Kg7 {[%clk 0:00:02.4]} 91... Rc6 {[%clk 0:00:10.3]} 92.
Bf4 {[%clk 0:00:01.7]} 92... Rc5 {[%clk 0:00:11.2]} 93. f7 {[%clk 0:00:01.8]}
93... Rc4 {[%clk 0:00:11.4]} 94. f8=Q {[%clk 0:00:01.7]} 94... Rc2 {[%clk
0:00:12.3]} 95. Qf7+ {[%clk 0:00:01.9]} 95... Kb1 {[%clk 0:00:13.2]} 96. Re6
{[%clk 0:00:02.2]} 96... Kb2 {[%clk 0:00:13.6]} 97. Qf5 {[%clk 0:00:02.7]} 97...
Kb1 {[%clk 0:00:14.5]} 98. Qe5 {[%clk 0:00:02.9]} 98... Rg2+ {[%clk 0:00:13]}
99. Kf7 {[%clk 0:00:01.9]} 99... Rc2 {[%clk 0:00:13.9]} 100. Qe4 {[%clk
0:00:01.9]} 100... Kb2 {[%clk 0:00:13.8]} 101. Rb6+ {[%clk 0:00:02]} 101... Ka1
{[%clk 0:00:14.7]} 102. Qa4+ {[%clk 0:00:01.9]} 102... Ra2 {[%clk 0:00:14.5]}
103. Qd1# {[%clk 0:00:02.5]} 1-0

[Event "*** SCC Grand Prix: Titled Tuesday Blitz"]
[Site "Chess.com"]
[Date "2020.10.06"]
[Round "8"]
[White "GelmanAlexander"]
[Black "r31415"]
[Result "1-0"]
[WhiteElo "2585"]
[BlackElo "2472"]
[TimeControl "180+1"]
[EndTime "11:30:01 PDT"]
[Termination "GelmanAlexander won by resignation"]

1. d4 {[%clk 0:03:00.9]} 1... Nf6 {[%clk 0:03:00]} 2. Nc3 {[%clk 0:03:00.9]}
2... g6 {[%clk 0:02:59.9]} 3. e4 {[%clk 0:02:59.6]} 3... d6 {[%clk 0:03:00.2]}
4. f4 {[%clk 0:02:59.5]} 4... Bg7 {[%clk 0:03:00.2]} 5. Nf3 {[%clk 0:03:00]}
5... O-O {[%clk 0:03:00.5]} 6. e5 {[%clk 0:03:00.2]} 6... dxe5 {[%clk
0:02:59.8]} 7. fxe5 {[%clk 0:03:01.1]} 7... Nd5 {[%clk 0:03:00]} 8. h4 {[%clk
0:03:01.5]} 8... Bg4 {[%clk 0:02:58.8]} 9. h5 {[%clk 0:03:01.3]} 9... Bxh5
{[%clk 0:02:58.3]} 10. Rxh5 {[%clk 0:03:00.5]} 10... gxh5 {[%clk 0:02:59.2]} 11.
Qd3 {[%clk 0:03:00.5]} 11... h6 {[%clk 0:02:44.1]} 12. Qe4 {[%clk 0:02:40.9]}
12... Nxc3 {[%clk 0:02:31.4]} 13. bxc3 {[%clk 0:02:41.8]} 13... c6 {[%clk
0:02:24.9]} 14. Bd3 {[%clk 0:02:40.2]} 14... Re8 {[%clk 0:02:23.6]} 15. Qh7+
{[%clk 0:02:38.1]} 15... Kf8 {[%clk 0:02:16.3]} 16. Bxh6 {[%clk 0:02:39]} 1-0

[Event "*** SCC Grand Prix: Titled Tuesday Blitz"]
[Site "Chess.com"]
[Date "2020.10.06"]
[Round "8"]
[White "Azerichess"]
[Black "Jospem"]
[Result "1/2-1/2"]
[WhiteElo "2931"]
[BlackElo "2999"]
[TimeControl "180+1"]
[EndTime "11:30:32 PDT"]
[Termination "Game drawn by agreement"]

1. d4 {[%clk 0:03:00.9]} 1... Nf6 {[%clk 0:03:00.1]} 2. c4 {[%clk 0:03:01.5]}
2... e6 {[%clk 0:03:00.5]} 3. Nc3 {[%clk 0:03:02.1]} 3... Bb4 {[%clk 0:03:00.9]}
4. Qc2 {[%clk 0:03:02.6]} 4... d6 {[%clk 0:02:55.5]} 5. e4 {[%clk 0:02:59.6]}
5... c5 {[%clk 0:02:49.8]} 6. dxc5 {[%clk 0:02:55.7]} 6... Bxc5 {[%clk
0:02:48.6]} 7. Be2 {[%clk 0:02:45.2]} 7... Nc6 {[%clk 0:02:38]} 8. Nf3 {[%clk
0:02:44.8]} 8... e5 {[%clk 0:02:33.7]} 9. O-O {[%clk 0:02:42.7]} 9... Bg4 {[%clk
0:02:34]} 10. Bg5 {[%clk 0:02:28.5]} 10... h6 {[%clk 0:02:23]} 11. Bxf6 {[%clk
0:02:25.4]} 11... Qxf6 {[%clk 0:02:22.9]} 12. Nd5 {[%clk 0:02:25.5]} 12... Qd8
{[%clk 0:02:21.6]} 13. a3 {[%clk 0:02:23.6]} 13... Bxf3 {[%clk 0:02:19.7]} 14.
Bxf3 {[%clk 0:02:23.4]} 14... a5 {[%clk 0:02:18.6]} 15. Rad1 {[%clk 0:02:13]}
1/2-1/2

[Event "*** SCC Grand Prix: Titled Tuesday Blitz"]
[Site "Chess.com"]
[Date "2020.10.06"]
[Round "8"]
[White "Gerasimenyuk_Miha"]
[Black "Chessdude1987"]
[Result "1-0"]
[WhiteElo "2420"]
[BlackElo "2243"]
[TimeControl "180+1"]
[EndTime "11:31:11 PDT"]
[Termination "Gerasimenyuk_Miha won by checkmate"]

1. d4 {[%clk 0:02:59.6]} 1... Nf6 {[%clk 0:02:58.9]} 2. Nf3 {[%clk 0:02:59.1]}
2... g6 {[%clk 0:02:58.2]} 3. Bg5 {[%clk 0:02:58.1]} 3... Bg7 {[%clk 0:02:57.2]}
4. e3 {[%clk 0:02:58.6]} 4... O-O {[%clk 0:02:56.9]} 5. Nbd2 {[%clk 0:02:56.8]}
5... d6 {[%clk 0:02:56.6]} 6. c3 {[%clk 0:02:55.3]} 6... Nbd7 {[%clk 0:02:56.4]}
7. Bd3 {[%clk 0:02:55.2]} 7... e5 {[%clk 0:02:56.4]} 8. h4 {[%clk 0:02:55.6]}
8... Re8 {[%clk 0:02:54.8]} 9. h5 {[%clk 0:02:52.5]} 9... h6 {[%clk 0:02:51.6]}
10. hxg6 {[%clk 0:02:52.6]} 10... fxg6 {[%clk 0:02:40]} 11. Bxh6 {[%clk
0:02:45.6]} 11... e4 {[%clk 0:02:38]} 12. Qb3+ {[%clk 0:02:37.1]} 12... Kf8
{[%clk 0:02:33.7]} 13. Ng5 {[%clk 0:02:24.9]} 13... d5 {[%clk 0:02:13.7]} 14.
Bxe4 {[%clk 0:02:17.8]} 14... Bxh6 {[%clk 0:02:04.2]} 15. Rxh6 {[%clk
0:02:15.8]} 15... Nxe4 {[%clk 0:01:56.8]} 16. Ndxe4 {[%clk 0:02:15.4]} 16...
dxe4 {[%clk 0:01:39.5]} 17. Qf7# {[%clk 0:02:13.7]} 1-0

[Event "*** SCC Grand Prix: Titled Tuesday Blitz"]
[Site "Chess.com"]
[Date "2020.10.06"]
[Round "8"]
[White "IngOscarArdila"]
[Black "shriyanasmallya"]
[Result "1-0"]
[WhiteElo "2122"]
[BlackElo "1623"]
[TimeControl "180+1"]
[EndTime "11:31:13 PDT"]
[Termination "IngOscarArdila won by checkmate"]

1. d4 {[%clk 0:03:00.9]} 1... d5 {[%clk 0:02:57.3]} 2. Nf3 {[%clk 0:02:58.3]}
2... Nf6 {[%clk 0:02:56.4]} 3. c4 {[%clk 0:02:58.1]} 3... e6 {[%clk 0:02:55.4]}
4. cxd5 {[%clk 0:02:57]} 4... exd5 {[%clk 0:02:54.9]} 5. Nc3 {[%clk 0:02:57.5]}
5... Be6 {[%clk 0:02:54.8]} 6. Bg5 {[%clk 0:02:58]} 6... Be7 {[%clk 0:02:55.4]}
7. e3 {[%clk 0:02:58.5]} 7... O-O {[%clk 0:02:54.3]} 8. Bd3 {[%clk 0:02:58.9]}
8... Nbd7 {[%clk 0:02:53.9]} 9. O-O {[%clk 0:02:58.4]} 9... b6 {[%clk
0:02:53.4]} 10. Qc2 {[%clk 0:02:58]} 10... c5 {[%clk 0:02:53.3]} 11. Ne5 {[%clk
0:02:55.4]} 11... h6 {[%clk 0:02:52.4]} 12. Bh4 {[%clk 0:02:55]} 12... Nxe5
{[%clk 0:02:50.7]} 13. dxe5 {[%clk 0:02:54.7]} 13... Nd7 {[%clk 0:02:51.1]} 14.
Bxe7 {[%clk 0:02:52.5]} 14... Qxe7 {[%clk 0:02:52]} 15. f4 {[%clk 0:02:52.4]}
15... Rac8 {[%clk 0:02:50.1]} 16. f5 {[%clk 0:02:50.5]} 16... d4 {[%clk
0:02:48.7]} 17. fxe6 {[%clk 0:02:43.8]} 17... Nxe5 {[%clk 0:02:44.5]} 18. exf7+
{[%clk 0:02:39.7]} 18... Rxf7 {[%clk 0:02:42.6]} 19. Nd5 {[%clk 0:02:38.6]}
19... Qg5 {[%clk 0:02:33.8]} 20. Rxf7 {[%clk 0:02:30.3]} 20... Kxf7 {[%clk
0:02:32.7]} 21. Rf1+ {[%clk 0:02:27.2]} 21... Ke8 {[%clk 0:02:32.3]} 22. Bf5
{[%clk 0:02:22.3]} 22... Rc6 {[%clk 0:02:26.1]} 23. Qe4 {[%clk 0:02:19.5]} 23...
Kd8 {[%clk 0:02:10.8]} 24. Qxe5 {[%clk 0:02:17.6]} 24... Rf6 {[%clk 0:01:57.5]}
25. Qe7# {[%clk 0:02:16.2]} 1-0

[Event "*** SCC Grand Prix: Titled Tuesday Blitz"]
[Site "Chess.com"]
[Date "2020.10.06"]
[Round "8"]
[White "A-Fier"]
[Black "OhanyanEminChess"]
[Result "1-0"]
[WhiteElo "2776"]
[BlackElo "2586"]
[TimeControl "180+1"]
[EndTime "11:31:16 PDT"]
[Termination "A-Fier won by resignation"]

1. e4 {[%clk 0:03:00.9]} 1... e5 {[%clk 0:02:56.7]} 2. f4 {[%clk 0:03:00.6]}
2... d5 {[%clk 0:02:55.7]} 3. exd5 {[%clk 0:03:00.4]} 3... exf4 {[%clk
0:02:56.4]} 4. Nf3 {[%clk 0:02:59.7]} 4... Nf6 {[%clk 0:02:54.9]} 5. Nc3 {[%clk
0:02:56.3]} 5... Nxd5 {[%clk 0:02:52.4]} 6. Nxd5 {[%clk 0:02:56.3]} 6... Qxd5
{[%clk 0:02:53.3]} 7. d4 {[%clk 0:02:56.8]} 7... Bg4 {[%clk 0:02:44.1]} 8. Bxf4
{[%clk 0:02:52.6]} 8... Nc6 {[%clk 0:02:31.2]} 9. Bxc7 {[%clk 0:02:34.8]} 9...
Bxf3 {[%clk 0:02:25.5]} 10. Qxf3 {[%clk 0:02:31.1]} 10... Qxf3 {[%clk
0:02:25.2]} 11. gxf3 {[%clk 0:02:31]} 11... Nxd4 {[%clk 0:02:25.8]} 12. O-O-O
{[%clk 0:02:31.1]} 12... Bc5 {[%clk 0:02:08.1]} 13. c3 {[%clk 0:02:24.9]} 13...
Nc6 {[%clk 0:01:54]} 14. Re1+ {[%clk 0:02:15.6]} 14... Kd7 {[%clk 0:01:51.5]}
15. Bf4 {[%clk 0:02:15.6]} 15... Bd6 {[%clk 0:01:45.2]} 16. Rd1 {[%clk
0:02:13.3]} 16... Rad8 {[%clk 0:01:40.3]} 17. Rxd6+ {[%clk 0:02:11.6]} 17... Kc8
{[%clk 0:01:40.2]} 18. Bh3+ {[%clk 0:02:10.9]} 1-0

[Event "*** SCC Grand Prix: Titled Tuesday Blitz"]
[Site "Chess.com"]
[Date "2020.10.06"]
[Round "8"]
[White "26andrej26"]
[Black "KiranManisha"]
[Result "1-0"]
[WhiteElo "2546"]
[BlackElo "2377"]
[TimeControl "180+1"]
[EndTime "11:31:54 PDT"]
[Termination "26andrej26 won by resignation"]

1. e4 {[%clk 0:03:00.9]} 1... c5 {[%clk 0:02:57.5]} 2. Nf3 {[%clk 0:03:01.1]}
2... d6 {[%clk 0:02:57.2]} 3. d4 {[%clk 0:03:02]} 3... cxd4 {[%clk 0:02:56.1]}
4. Nxd4 {[%clk 0:03:02.9]} 4... Nf6 {[%clk 0:02:56.8]} 5. Nc3 {[%clk 0:03:03.2]}
5... Nc6 {[%clk 0:02:57.7]} 6. Bc4 {[%clk 0:03:03.3]} 6... e6 {[%clk 0:02:56]}
7. Bb3 {[%clk 0:03:03.7]} 7... a6 {[%clk 0:02:52.4]} 8. Be3 {[%clk 0:03:04.1]}
8... Qc7 {[%clk 0:02:50.8]} 9. O-O {[%clk 0:03:04.3]} 9... Be7 {[%clk
0:02:49.8]} 10. f4 {[%clk 0:03:04.4]} 10... O-O {[%clk 0:02:46.7]} 11. f5 {[%clk
0:03:04.8]} 11... Nxd4 {[%clk 0:02:46.6]} 12. Bxd4 {[%clk 0:03:04.9]} 12... b5
{[%clk 0:02:42.6]} 13. a3 {[%clk 0:03:05.1]} 13... Qb7 {[%clk 0:02:36.6]} 14.
Qd3 {[%clk 0:03:04.5]} 14... Kh8 {[%clk 0:02:36.6]} 15. Rad1 {[%clk 0:03:04]}
15... Bd7 {[%clk 0:02:36.5]} 16. Kh1 {[%clk 0:03:03.8]} 16... Rac8 {[%clk
0:02:35.7]} 17. Be3 {[%clk 0:02:57.6]} 17... Rxc3 {[%clk 0:02:33.8]} 18. bxc3
{[%clk 0:02:57.2]} 18... Nxe4 {[%clk 0:02:27.2]} 19. fxe6 {[%clk 0:02:55.8]}
19... fxe6 {[%clk 0:02:28.1]} 20. Rxf8+ {[%clk 0:02:55.6]} 20... Bxf8 {[%clk
0:02:29]} 21. Rf1 {[%clk 0:02:55.5]} 21... Nf6 {[%clk 0:02:27.1]} 22. Bf4 {[%clk
0:02:53.9]} 22... Bc6 {[%clk 0:02:17.8]} 23. Qe2 {[%clk 0:02:51.6]} 23... e5
{[%clk 0:02:15.1]} 24. Bg5 {[%clk 0:02:51.2]} 24... Be7 {[%clk 0:02:15.6]} 25.
Kg1 {[%clk 0:02:51.1]} 25... Ne4 {[%clk 0:02:08.5]} 26. Bxe7 {[%clk 0:02:46.6]}
26... Qxe7 {[%clk 0:02:09.4]} 27. Qf3 {[%clk 0:02:39.6]} 27... h6 {[%clk
0:02:04]} 28. Qf8+ {[%clk 0:02:38.6]} 28... Qxf8 {[%clk 0:02:03.6]} 29. Rxf8+
{[%clk 0:02:39.5]} 29... Kh7 {[%clk 0:02:04.1]} 30. Rc8 {[%clk 0:02:33.2]} 30...
Bd7 {[%clk 0:02:03.3]} 31. Rd8 {[%clk 0:02:25]} 31... Bf5 {[%clk 0:02:02.9]} 32.
Bd5 {[%clk 0:02:22.3]} 32... Nxc3 {[%clk 0:02:01.8]} 33. Rxd6 {[%clk 0:02:20.5]}
33... Bxc2 {[%clk 0:02:00.7]} 34. Rc6 {[%clk 0:02:09.6]} 34... Ne2+ {[%clk
0:01:56.4]} 35. Kf2 {[%clk 0:02:08]} 35... Nd4 {[%clk 0:01:55.9]} 36. Rxc2
{[%clk 0:02:07.6]} 36... Nxc2 {[%clk 0:01:56.8]} 37. Be4+ {[%clk 0:02:07.8]}
37... Kg8 {[%clk 0:01:55.9]} 38. Bxc2 {[%clk 0:02:08.7]} 1-0

[Event "*** SCC Grand Prix: Titled Tuesday Blitz"]
[Site "Chess.com"]
[Date "2020.10.06"]
[Round "8"]
[White "TrimitziosP7"]
[Black "Carnivoras"]
[Result "1-0"]
[WhiteElo "2811"]
[BlackElo "2675"]
[TimeControl "180+1"]
[EndTime "11:32:05 PDT"]
[Termination "TrimitziosP7 won by resignation"]

1. e4 {[%clk 0:03:00.9]} 1... e5 {[%clk 0:02:59.6]} 2. Bc4 {[%clk 0:03:00.3]}
2... Nc6 {[%clk 0:02:58]} 3. f4 {[%clk 0:02:57.2]} 3... Nf6 {[%clk 0:02:44.4]}
4. Nc3 {[%clk 0:02:53.3]} 4... Bb4 {[%clk 0:02:39.3]} 5. Nf3 {[%clk 0:02:45.9]}
5... exf4 {[%clk 0:02:12.4]} 6. O-O {[%clk 0:02:42.5]} 6... O-O {[%clk
0:02:10.4]} 7. d3 {[%clk 0:02:41.9]} 7... Bxc3 {[%clk 0:02:06.2]} 8. bxc3 {[%clk
0:02:41.6]} 8... d5 {[%clk 0:02:06.4]} 9. exd5 {[%clk 0:02:37]} 9... Nxd5 {[%clk
0:02:07.3]} 10. Bxd5 {[%clk 0:02:37.6]} 10... Qxd5 {[%clk 0:02:07.7]} 11. Bxf4
{[%clk 0:02:38.2]} 11... Qa5 {[%clk 0:01:53.9]} 12. c4 {[%clk 0:02:33.8]} 12...
Bg4 {[%clk 0:01:53]} 13. h3 {[%clk 0:02:31.1]} 13... Bh5 {[%clk 0:01:49.6]} 14.
Rb1 {[%clk 0:02:22.8]} 14... Nd4 {[%clk 0:01:31.4]} 15. g4 {[%clk 0:02:15.5]}
15... Nxf3+ {[%clk 0:01:31.7]} 16. Qxf3 {[%clk 0:02:16.3]} 16... Bg6 {[%clk
0:01:31.6]} 17. Rxb7 {[%clk 0:02:14.2]} 17... Qxa2 {[%clk 0:01:30]} 18. Qg2
{[%clk 0:02:03.8]} 18... a5 {[%clk 0:01:24.1]} 19. Be5 {[%clk 0:01:54.2]} 19...
a4 {[%clk 0:01:18.8]} 20. Ra1 {[%clk 0:01:52.9]} 1-0

[Event "*** SCC Grand Prix: Titled Tuesday Blitz"]
[Site "Chess.com"]
[Date "2020.10.06"]
[Round "8"]
[White "beto-betun"]
[Black "VladimirBugayev"]
[Result "1/2-1/2"]
[WhiteElo "2163"]
[BlackElo "2294"]
[TimeControl "180+1"]
[EndTime "11:32:20 PDT"]
[Termination "Game drawn by agreement"]

1. d4 {[%clk 0:03:00.9]} 1... d5 {[%clk 0:02:59.5]} 2. Nf3 {[%clk 0:02:59.7]}
2... c5 {[%clk 0:02:58]} 3. g3 {[%clk 0:02:57.1]} 3... Nf6 {[%clk 0:02:54.7]} 4.
Bg2 {[%clk 0:02:56]} 4... Nc6 {[%clk 0:02:54.8]} 5. O-O {[%clk 0:02:53.8]} 5...
cxd4 {[%clk 0:02:49.4]} 6. Nxd4 {[%clk 0:02:54.7]} 6... e5 {[%clk 0:02:48.9]} 7.
Nxc6 {[%clk 0:02:36]} 7... bxc6 {[%clk 0:02:49.8]} 8. c4 {[%clk 0:02:36.4]} 8...
Be6 {[%clk 0:02:43.2]} 9. Nc3 {[%clk 0:02:34]} 9... Be7 {[%clk 0:02:38.9]} 10.
Bg5 {[%clk 0:02:31.9]} 10... e4 {[%clk 0:02:31]} 11. f3 {[%clk 0:02:24.2]} 11...
exf3 {[%clk 0:02:25.2]} 12. Bxf3 {[%clk 0:02:25.1]} 12... O-O {[%clk 0:02:18.6]}
13. cxd5 {[%clk 0:02:22.8]} 13... Nxd5 {[%clk 0:02:09.2]} 14. Bxe7 {[%clk
0:02:19.9]} 14... Nxe7 {[%clk 0:02:08.7]} 15. Qxd8 {[%clk 0:02:15.5]} 15...
Rfxd8 {[%clk 0:02:09.6]} 16. Rfd1 {[%clk 0:02:15.8]} 16... Rab8 {[%clk
0:01:59.1]} 17. b3 {[%clk 0:02:08]} 17... c5 {[%clk 0:01:54.8]} 18. Ne4 {[%clk
0:01:59.3]} 18... c4 {[%clk 0:01:53.3]} 19. Rxd8+ {[%clk 0:01:53.7]} 19... Rxd8
{[%clk 0:01:52.4]} 20. Nc5 {[%clk 0:01:53.5]} 20... cxb3 {[%clk 0:01:43.9]} 21.
Nxe6 {[%clk 0:01:46.6]} 21... b2 {[%clk 0:01:42.5]} 22. Rb1 {[%clk 0:01:46.8]}
22... fxe6 {[%clk 0:01:39.8]} 23. Rxb2 {[%clk 0:01:44.5]} 23... Rd7 {[%clk
0:01:40.2]} 24. Kf2 {[%clk 0:01:39.8]} 24... Nd5 {[%clk 0:01:39.2]} 25. Bxd5
{[%clk 0:01:38.3]} 25... exd5 {[%clk 0:01:38]} 26. Ke3 {[%clk 0:01:38.7]} 26...
Kf7 {[%clk 0:01:37.9]} 27. Kd4 {[%clk 0:01:37]} 27... Ke6 {[%clk 0:01:37.9]} 28.
Rb5 {[%clk 0:01:30.1]} 1/2-1/2

[Event "*** SCC Grand Prix: Titled Tuesday Blitz"]
[Site "Chess.com"]
[Date "2020.10.06"]
[Round "8"]
[White "lacafi"]
[Black "kidagent"]
[Result "0-1"]
[WhiteElo "2106"]
[BlackElo "2285"]
[TimeControl "180+1"]
[EndTime "11:33:31 PDT"]
[Termination "kidagent won by resignation"]

1. d4 {[%clk 0:02:58.6]} 1... d5 {[%clk 0:02:59.8]} 2. Nf3 {[%clk 0:02:58.5]}
2... Nf6 {[%clk 0:02:59.6]} 3. e3 {[%clk 0:02:58.4]} 3... c5 {[%clk 0:02:58.5]}
4. c3 {[%clk 0:02:58.2]} 4... cxd4 {[%clk 0:02:58.5]} 5. exd4 {[%clk 0:02:58.2]}
5... Nc6 {[%clk 0:02:58]} 6. Bd3 {[%clk 0:02:57.4]} 6... Bg4 {[%clk 0:02:56.8]}
7. Nbd2 {[%clk 0:02:55.1]} 7... e6 {[%clk 0:02:56.5]} 8. O-O {[%clk 0:02:53.8]}
8... Bd6 {[%clk 0:02:55.2]} 9. Re1 {[%clk 0:02:34]} 9... O-O {[%clk 0:02:54.4]}
10. Qb3 {[%clk 0:02:33.8]} 10... b6 {[%clk 0:02:51.1]} 11. Qa4 {[%clk
0:02:21.4]} 11... Ne7 {[%clk 0:02:49.8]} 12. Ne5 {[%clk 0:02:19.4]} 12... Bf5
{[%clk 0:02:46]} 13. Bf1 {[%clk 0:02:07.2]} 13... h6 {[%clk 0:02:37.3]} 14. h3
{[%clk 0:01:52]} 14... Qc7 {[%clk 0:02:35.5]} 15. g4 {[%clk 0:01:40]} 15... Bh7
{[%clk 0:02:33.9]} 16. f3 {[%clk 0:01:33]} 16... a6 {[%clk 0:02:24.1]} 17. Qb3
{[%clk 0:01:20.2]} 17... b5 {[%clk 0:02:22.6]} 18. Bg2 {[%clk 0:01:14.6]} 18...
Nd7 {[%clk 0:02:20]} 19. f4 {[%clk 0:01:13]} 19... f6 {[%clk 0:02:15.8]} 20.
Nxd7 {[%clk 0:01:12.6]} 20... Qxd7 {[%clk 0:02:15.9]} 21. Nf1 {[%clk 0:01:11.4]}
21... Rae8 {[%clk 0:02:10.2]} 22. Nh2 {[%clk 0:00:56.5]} 22... Kh8 {[%clk
0:02:09.1]} 23. Nf3 {[%clk 0:00:55.8]} 23... Ng6 {[%clk 0:02:06.1]} 24. g5
{[%clk 0:00:32.5]} 24... Bxf4 {[%clk 0:02:01.2]} 25. gxh6 {[%clk 0:00:31.4]}
25... gxh6 {[%clk 0:02:00.7]} 26. Qc2 {[%clk 0:00:23.9]} 26... Rg8 {[%clk
0:01:54.7]} 27. Qf2 {[%clk 0:00:20.5]} 27... Bxc1 {[%clk 0:01:50.5]} 28. Raxc1
{[%clk 0:00:20.2]} 28... Nf4 {[%clk 0:01:51]} 29. Nh4 {[%clk 0:00:20.5]} 29...
Nxh3+ {[%clk 0:01:44.1]} 0-1